bitfinex/quotes_ETHUSD_20241106
["timestamp","ask_amount","ask_price","bid_price","bid_amount"]
[1730861859704,0.8285,2578.8,2577.9,0.57881731]
[1730861859852,0.8285,2578.8,2577.8,1.86329913]
[1730861859853,3.87807,2578.6,2577.8,1.86329913]
[1730861860056,4.70638,2578.8,2577.9,0.87427191]
[1730861860279,4.70638,2578.8,2577.9,1.45308922]
[1730861860763,4.70638,2578.8,2577.9,1.57436175]
[1730861860764,0.039237,2578.7,2577.9,1.57436175]
[1730861860961,0.04410752,2578.8,2578.1,3.87882]
[1730861861162,0.0654175,2579.3,2579.0,3.87736]
[1730861861367,0.0654175,2579.3,2578.8,6.87764]
[1730861861368,0.0654175,2579.3,2579.1,0.79]
[1730861861778,0.0654175,2579.3,2578.6,4.72]
[1730861861779,3.87734,2579.1,2578.6,4.72]
[1730861861981,3.87774,2578.9,2578.2,0.79]
[1730861862194,3.87734,2579.1,2578.2,0.79]
[1730861862504,3.87775,2578.9,2578.2,0.79]
[1730861862657,0.0654175,2579.3,2578.2,0.57907709]
[1730861862658,3.87804,2578.7,2578.2,0.57907709]
[1730861863002,3.87804,2578.7,2578.0,1e-08]
[1730861863003,3.87852,2578.3,2578.0,1e-08]
[1730861863166,3.87852,2578.3,2577.5,0.8482124]
[1730861863167,4.70232,2578.1,2577.5,0.79]
[1730861864353,3.87898,2578.0,2577.5,0.79]
[1730861864553,4.70232,2578.1,2577.5,0.79]
[1730861864554,3.87914,2577.9,2577.5,0.79]
[1730861864778,4.70232,2578.1,2577.5,0.79]
[1730861864978,3.87897,2578.0,2577.4,0.07758681]
[1730861865211,3.87897,2578.0,2577.4,0.34915299]
[1730861865416,4.70232,2578.1,2577.4,0.34915299]
[1730861865417,4.70234,2578.1,2577.4,0.34915299]
[1730861865583,3.87902,2578.0,2577.4,0.77221013]
[1730861865794,0.470154,2578.7,2577.4,0.77221013]
[1730861865795,3.8787,2578.2,2577.4,0.77221013]
[1730861866007,3.87898,2578.0,2577.4,0.27156618]
[1730861866301,3.87914,2577.9,2577.4,0.27156618]
[1730861866505,3.87898,2578.0,2577.4,0.27156618]
[1730861866699,3.87913,2577.9,2577.4,0.27156618]
[1730861866898,3.87898,2578.0,2577.4,0.27156618]
[1730861867099,3.87865,2578.3,2577.4,0.27156618]
[1730861867100,3.87878,2578.2,2577.4,0.27156618]
[1730861867681,3.87883,2578.1,2577.4,0.27156618]
[1730861868605,3.87938,2577.8,2577.2,1.58449733]
[1730861869916,3.87961,2577.6,2577.2,1.58449733]
[1730861870228,3.87938,2577.8,2577.2,1.58449733]
[1730861871827,3.87951,2577.7,2577.2,1.58449733]
[1730861872185,3.87938,2577.8,2577.2,1.58449733]
[1730861872393,3.87905,2578.0,2577.3,0.59996047]
[1730861872728,3.87924,2577.9,2577.3,0.59996047]
[1730861872893,3.87868,2578.2,2577.4,0.07758629]
[1730861873104,0.8094,2579.2,2577.5,3.7579]
[1730861873285,0.8094,2579.2,2577.7,0.7579]
[1730861873286,0.8194,2579.2,2577.7,0.7579]
[1730861873611,0.005,2579.7,2577.7,0.83546431]
[1730861873612,3.87852,2578.3,2577.7,0.83546431]
[1730861874229,3.87827,2578.5,2577.7,0.7579]
[1730861874387,3.87894,2578.1,2577.7,0.7579]
[1730861874738,3.87893,2578.1,2577.7,0.7579]
[1730861875085,3.87812,2578.6,2577.5,0.80497953]
[1730861875086,3.87934,2577.8,2577.5,0.80497953]
[1730861875432,3.87934,2577.8,2577.4,0.30987215]
[1730861875631,3.87944,2577.7,2577.3,1.74532252]
[1730861875928,3.87912,2577.9,2577.4,0.25719199]
[1730861876480,3.87882,2578.2,2577.4,0.25719199]
[1730861876597,7.75762,2578.2,2577.5,0.7579]
[1730861876800,3.8788,2578.2,2577.5,0.7579]
[1730861877326,3.87842,2578.4,2577.5,0.7579]
[1730861877533,3.87883,2578.1,2577.5,0.7579]
[1730861877738,3.87913,2577.9,2577.5,0.7579]
[1730861877912,3.87883,2578.1,2577.5,0.7579]
[1730861878111,7.75777,2578.1,2577.5,0.7579]
[1730861878329,3.87867,2578.2,2577.5,0.7579]
[1730861878506,3.87896,2578.1,2577.5,0.7579]
[1730861879027,0.7879,2579.1,2577.7,0.7629]
[1730861879239,3.87717,2579.2,2578.1,0.7629]
[1730861879525,3.87717,2579.2,2578.2,0.05819074]
[1730861879526,3.87809,2578.6,2578.2,0.05819074]
[1730861879729,3.87809,2578.6,2578.2,0.56430318]
[1730861880136,3.87745,2579.1,2577.8,0.38504771]
[1730861880137,3.87868,2578.2,2577.8,0.38504771]
[1730861880516,3.87868,2578.2,2577.7,0.12127788]
[1730861880710,3.87924,2577.9,2577.6,0.49605723]
[1730861880929,3.87869,2578.2,2577.7,0.07758121]
[1730861881615,3.879,2578.0,2577.4,0.25719199]
[1730861882309,3.879,2578.0,2577.5,0.07757837]
[1730861882655,3.87915,2577.9,2577.4,0.25719199]
[1730861882838,3.8787,2578.2,2577.4,0.25719199]
[1730861883150,3.87843,2578.4,2577.6,0.7629]
[1730861883364,3.87843,2578.4,2577.7,0.07756875]
[1730861883516,3.87883,2578.1,2577.6,0.7629]
[1730861883711,3.9424775,2579.3,2577.7,10.10595667]
[1730861883917,3.87818,2578.6,2577.9,0.7629]
[1730861884152,3.87913,2577.9,2577.4,0.38911049]
[1730861884355,3.8794,2577.8,2577.1,3.92]
[1730861884616,0.7879,2578.2,2577.1,3.92]
[1730861884966,0.7879,2578.2,2576.7,10.10595667]
[1730861884967,3.88003,2577.3,2576.7,10.10595667]
[1730861885114,3.88032,2577.2,2576.7,10.10595667]
[1730861885314,3.87992,2577.4,2576.3,0.01]
[1730861885315,3.88048,2577.0,2576.3,1.50836092]
[1730861885515,0.7879,2577.4,2576.2,0.81265796]
[1730861885765,3.8809,2576.8,2576.2,0.81265796]
[1730861885913,3.87969,2577.6,2576.3,0.07761679]
[1730861886117,3.87991,2577.4,2576.4,10.12595667]
[1730861886323,3.87991,2577.4,2576.4,12.05072152]
[1730861886526,3.87969,2577.6,2576.5,1.7510333]
[1730861886750,3.87969,2577.6,2576.5,5.16743723]
[1730861886923,3.87944,2577.7,2576.6,4.52836092]
[1730861887125,3.87944,2577.7,2576.9,0.7629]
[1730861887126,3.87973,2577.5,2576.9,0.7629]
[1730861887325,3.87944,2577.7,2576.9,0.7629]
[1730861887571,3.87944,2577.7,2577.0,35.0]
[1730861887572,3.8796,2577.6,2577.0,35.0]
[1730861887730,3.87944,2577.7,2577.0,35.0]
[1730861887731,3.87974,2577.5,2577.0,35.0]
[1730861887932,3.87944,2577.7,2577.0,35.0]
[1730861888130,3.8796,2577.6,2577.1,0.24263333]
[1730861888350,3.8796,2577.6,2577.0,35.0]
[1730861888670,3.88014,2577.3,2577.0,35.0]
[1730861888956,3.88033,2577.1,2577.0,35.0]
[1730861889165,4.66823,2577.1,2576.4,10.10595667]
[1730861889336,1.13,2575.6,2575.3,0.12587561]
[1730861889542,6.10070724,2575.4,2574.7,0.4055154]
[1730861889845,3.88396,2574.7,2574.4,0.0415566]
[1730861890057,3.88424,2574.5,2574.4,0.0415566]
[1730861890625,3.88424,2574.5,2574.4,35.0000066]
[1730861890626,5.98237811,2574.5,2574.4,35.0000066]
[1730861890870,3.88424,2574.5,2574.4,35.0000066]
[1730861891026,9.97494724,2574.5,2574.4,35.0000066]
[1730861891513,11.06436721,2574.5,2574.4,35.0000066]
[1730861892342,11.06436721,2574.5,2573.8,0.7629]
[1730861892654,11.06436721,2574.5,2573.1,0.0635879]
[1730861892655,7.18012721,2573.9,2573.2,0.7629]
[1730861893479,3.88515,2573.9,2573.8,35.0]
[1730861894131,4.67489,2575.1,2573.9,0.7662]
[1730861894328,3.88322,2575.2,2574.0,0.42107772]
[1730861894665,3.88279,2575.5,2574.5,0.7662]
[1730861894873,3.88279,2575.5,2575.1,35.0]
[1730861895165,3.88279,2575.5,2574.6,0.42107772]
[1730861895166,3.88293,2575.4,2574.6,0.42107772]
[1730861895681,3.88263,2575.6,2575.2,35.0]
[1730861895878,7.97237643,2575.9,2575.2,35.0]
[1730861896175,3.88294,2575.4,2575.2,35.0]
[1730861896576,3.8823,2575.8,2575.2,35.0]
[1730861896789,3.8823,2575.8,2574.9,0.42107772]
[1730861896987,3.88256,2575.7,2574.9,0.42107772]
[1730861897194,3.88256,2575.7,2574.8,0.01]
[1730861897195,3.88256,2575.7,2575.6,35.0]
[1730861898084,3.88217,2575.9,2575.6,35.0]
[1730861898272,3.88217,2575.9,2574.9,0.05826724]
[1730861898273,3.88236,2575.8,2575.0,0.7662]
[1730861898471,3.88268,2575.6,2575.0,0.7662]
[1730861898680,3.88268,2575.6,2575.5,35.0]
[1730861899281,3.88153,2576.3,2575.5,35.0]
[1730861899692,3.88153,2576.3,2575.0,0.7862]
[1730861899845,3.88153,2576.3,2575.2,0.01]
[1730861900043,3.88126,2576.5,2575.7,35.0]
[1730861900342,7.97237643,2576.7,2575.8,0.7662]
[1730861900546,3.88094,2576.7,2575.9,0.07762973]
[1730861900779,3.88066,2576.9,2575.8,0.7662]
[1730861900981,0.7915,2577.3,2576.5,35.0]
[1730861901283,3.88041,2577.1,2576.5,35.0]
[1730861901500,0.48886713,2578.1,2576.5,35.0]
[1730861901501,7.97237643,2578.2,2576.6,0.7662]
[1730861901645,3.87961,2577.6,2576.6,0.7662]
[1730861901968,3.87923,2577.9,2577.1,35.0]
[1730861902174,3.87952,2577.7,2577.2,1.46211085]
[1730861902544,3.87966,2577.6,2577.2,1.46211085]
[1730861902777,3.87952,2577.7,2577.2,1.46211085]
[1730861903247,7.18087643,2577.8,2577.2,1.46211085]
[1730861903492,7.18087643,2577.8,2577.3,0.47471548]
[1730861903794,7.18087643,2577.8,2577.1,35.0]
[1730861903795,3.87986,2577.5,2577.1,35.0]
[1730861904251,3.88008,2577.3,2577.1,35.0]
[1730861904455,3.88018,2577.2,2577.0,0.05821627]
[1730861904754,3.88008,2577.3,2575.7,0.02]
[1730861904755,3.88105,2576.7,2575.8,0.7662]
[1730861904957,3.88076,2576.9,2575.9,35.0]
[1730861905191,3.88104,2576.7,2575.9,35.0]
[1730861905374,7.97237643,2577.4,2575.9,35.42682772]
[1730861905546,3.88079,2576.8,2575.9,35.42682772]
[1730861905744,7.18087643,2576.6,2575.9,35.43682772]
[1730861906785,11.06138643,2577.0,2575.9,35.43682772]
[1730861906987,11.06138643,2577.0,2575.9,35.42682772]
[1730861907160,11.06138643,2577.0,2575.9,35.43682772]
[1730861907361,7.18087643,2577.4,2576.3,0.01]
[1730861907662,7.18087643,2577.0,2576.2,0.7662]
[1730861907872,7.18087643,2576.6,2576.2,0.7662]
[1730861908074,7.18087643,2576.6,2576.4,35.0]
[1730861908385,7.18087643,2576.6,2576.2,0.7662]
[1730861908386,3.8815,2576.4,2576.2,0.7662]
[1730861908562,3.88153,2576.3,2575.6,0.7662]
[1730861908749,7.18087643,2576.2,2575.7,35.0]
[1730861908948,7.18087643,2576.2,2575.8,0.0776334]
[1730861909201,7.18087643,2576.2,2575.7,0.01]
[1730861909358,7.18087643,2576.2,2575.6,0.7662]
[1730861909564,7.18087643,2576.2,2575.9,35.0]
[1730861909890,3.88196,2576.1,2575.9,35.0]
[1730861910254,7.18087643,2576.2,2575.9,35.0]
[1730861910465,3.8819,2576.1,2575.9,35.0]
[1730861910680,3.88198,2576.0,2575.9,35.0]
[1730861911046,3.88198,2576.0,2574.9,0.05826724]
[1730861911047,3.88255,2575.7,2575.2,0.7819]
[1730861911253,3.88287,2575.5,2575.2,0.7819]
[1730861911555,11.06339643,2575.7,2575.3,35.0]
[1730861911556,11.06335643,2575.7,2575.3,35.0]
[1730861911972,3.88278,2575.5,2575.3,35.0]
[1730861912380,3.88169,2576.2,2575.2,0.8019]
[1730861912566,3.88149,2576.4,2575.4,0.46099439]
[1730861913090,3.88149,2576.4,2575.8,35.0]
[1730861913285,7.18087643,2576.0,2575.8,35.0]
[1730861913587,6.8242191,2576.0,2575.9,1.42220689]
[1730861914199,3.88097,2576.7,2576.0,0.7819]
[1730861914487,7.18087643,2576.3,2576.1,0.07762135]
[1730861914686,7.18087643,2576.3,2576.0,0.7819]
[1730861914893,7.18087643,2576.3,2576.0,1.29651944]
[1730861915192,11.06244643,2576.3,2576.0,1.29651944]
[1730861915358,7.18087643,2576.3,2576.0,1.29651944]
[1730861917054,3.88024,2577.2,2576.0,1.29651944]
[1730861917055,3.88043,2577.1,2576.0,1.29651944]
[1730861917257,7.18087643,2576.5,2576.0,1.29651944]
[1730861917484,7.18087643,2576.5,2576.1,0.21036394]
[1730861917820,7.18087643,2576.5,2576.0,1.29651944]
[1730861919357,7.18087643,2576.5,2576.0,1.60304052]
[1730861919693,7.18087643,2576.5,2576.0,1.41785654]
[1730861919852,7.18087643,2576.5,2576.0,1.29651944]
[1730861920395,7.18087643,2576.1,2576.0,1.29651944]
[1730861920783,7.18087643,2576.1,2575.9,0.30654596]
[1730861921095,7.18087643,2576.1,2575.9,0.79779236]
[1730861922460,7.18087643,2576.1,2575.9,0.30654596]
[1730861922654,7.18087643,2576.6,2576.0,0.07763285]
[1730861922859,7.18087643,2576.6,2575.8,35.0]
[1730861923090,3.88152,2576.4,2575.9,0.79946961]
[1730861923280,11.06199643,2576.6,2576.0,0.3074869]
[1730861923475,11.06199643,2576.6,2575.9,0.79946961]
[1730861923676,3.88151,2576.4,2575.9,0.79946961]
[1730861923880,3.88135,2576.5,2575.9,0.79946961]
[1730861924082,7.18087643,2576.1,2575.9,0.79946961]
[1730861924398,7.18087643,2576.1,2576.0,0.3074869]
[1730861925302,7.18087643,2576.9,2576.0,2.077514]
[1730861925472,7.18087643,2576.9,2576.1,1.70755667]
[1730861925668,7.18087643,2576.9,2576.2,0.79946961]
[1730861925869,7.18087643,2576.9,2576.4,35.0]
[1730861926058,7.18087643,2577.4,2576.6,0.7588]
[1730861926259,7.18087643,2577.4,2576.7,1.15142786]
[1730861926488,7.18087643,2577.4,2576.7,0.84394096]
[1730861926693,7.18087643,2577.4,2576.8,0.30864236]
[1730861926894,0.11832174,2578.2,2576.8,0.30864236]
[1730861926895,7.18087643,2578.7,2577.5,2.27289072]
[1730861927097,7.18087643,2578.7,2577.7,0.7588]
[1730861927361,7.18087643,2578.7,2577.9,0.01]
[1730861927556,7.18087643,2578.7,2578.0,0.30864236]
[1730861927801,4.64497,2579.4,2578.2,0.7588]
[1730861927802,3.87721,2579.2,2578.2,0.7588]
[1730861928008,7.18087643,2579.1,2578.2,8.43994382]
[1730861928161,7.18087643,2579.1,2578.2,5.24345104]
[1730861928360,7.18087643,2579.1,2578.2,36.56615866]
[1730861928704,7.18087643,2579.1,2578.2,40.04999012]
[1730861928901,7.18087643,2579.1,2578.2,40.05999012]
[1730861929410,7.18087643,2579.1,2578.2,40.04999012]
[1730861929563,7.18087643,2579.1,2578.2,40.7272825]
[1730861930118,11.05830643,2579.1,2578.2,39.92480868]
[1730861930410,11.05830643,2579.1,2578.2,40.04392353]
[1730861930592,7.18087643,2579.1,2578.2,40.04392353]
[1730861930907,11.05820643,2579.1,2578.2,37.04392353]
[1730861931109,7.18087643,2579.1,2578.2,37.05392353]
[1730861931259,7.18087643,2579.1,2578.2,40.05392353]
[1730861931616,7.18087643,2579.1,2578.2,40.68788258]
[1730861931904,3.87713,2579.3,2578.2,40.05392353]
[1730861932089,7.18087643,2578.9,2578.2,40.05392353]
[1730861932308,7.18087643,2578.9,2578.2,40.04392353]
[1730861932461,7.18087643,2578.4,2578.2,37.04392353]
[1730861932662,7.18087643,2578.4,2578.2,37.0419676]
[1730861933132,7.18087643,2578.4,2578.2,35.30555679]
[1730861933429,7.18087643,2578.4,2577.8,0.7588]
[1730861933634,7.18087643,2577.9,2577.6,0.90987093]
[1730861933782,7.18087643,2577.9,2577.6,0.30570186]
[1730861934147,7.18087643,2577.9,2577.5,3.93587481]
[1730861934281,7.18087643,2577.9,2577.6,35.30562088]
[1730861934484,7.18087643,2577.9,2577.6,35.0]
[1730861934714,7.18087643,2577.9,2577.5,4.56983386]
[1730861934715,11.06011643,2577.9,2577.4,0.05819605]
[1730861934887,11.06011643,2577.9,2576.9,0.7588]
[1730861935085,11.06011643,2577.9,2577.0,35.0]
[1730861935386,11.06011643,2577.9,2577.1,0.30567082]
[1730861935581,7.18087643,2577.9,2577.1,0.30567082]
[1730861935819,7.18087643,2577.9,2576.9,0.7588]
[1730861936026,7.18087643,2577.9,2577.2,35.0]
[1730861936184,11.06003643,2577.9,2577.3,0.30567082]
[1730861936528,3.87943,2577.7,2577.3,0.30567082]
[1730861937022,11.06003643,2577.9,2577.3,0.30546397]
[1730861937683,7.18087643,2577.9,2577.3,0.79244123]
[1730861937910,7.18087643,2577.9,2577.4,0.7588]
[1730861938794,7.15801745,2578.0,2577.4,0.7588]
[1730861939322,7.15801745,2578.0,2577.5,35.0]
[1730861939782,5.93185978,2578.0,2577.6,0.30435203]
[1730861939986,5.93185978,2578.0,2577.6,0.79130651]
[1730861940284,3.9421979,2578.3,2577.4,0.7588]
[1730861940486,7.15801745,2578.1,2577.7,35.0]
[1730861940799,11.03688745,2578.1,2577.7,35.0]
[1730861941440,3.87967,2577.6,2577.1,0.7861]
[1730861941727,3.87967,2577.6,2576.6,2.842391]
[1730861941728,3.88039,2577.1,2576.6,2.842391]
[1730861941953,0.01,2578.2,2576.6,1.85263402]
[1730861942090,7.15801745,2577.8,2577.0,0.01]
[1730861942416,7.15801745,2577.8,2577.1,35.54350905]
[1730861942619,7.15801745,2577.3,2577.2,0.48741593]
[1730861942793,11.03776745,2577.5,2577.2,1.03092498]
[1730861943106,3.88015,2577.3,2577.2,0.48755524]
[1730861943313,11.03779745,2577.5,2577.1,35.0]
[1730861943620,3.88015,2577.3,2577.1,35.56495458]
[1730861943786,3.88015,2577.3,2577.1,35.0]
[1730861944434,3.88003,2577.3,2577.1,35.0]
[1730861944733,11.03778745,2577.5,2577.1,35.0]
[1730861945236,7.15801745,2577.5,2577.1,35.0]
[1730861945391,7.15801745,2577.5,2577.2,0.07759]
[1730861945590,7.15801745,2577.5,2576.9,0.7419]
[1730861945796,0.7729,2578.1,2576.9,0.7419]
[1730861945797,7.15801745,2577.0,2576.9,0.7419]
[1730861946101,7.15801745,2577.0,2576.7,0.0776007]
[1730861946306,7.15801745,2577.0,2576.6,1.82186921]
[1730861946697,7.15801745,2577.0,2576.9,35.0]
[1730861947801,3.88071,2576.9,2576.2,0.7419]
[1730861948224,7.15801745,2577.0,2576.2,0.7419]
[1730861948409,3.88103,2576.7,2576.2,0.7419]
[1730861948746,3.88068,2576.9,2576.3,35.0]
[1730861948945,3.8808,2576.8,2576.4,0.07761161]
[1730861949239,3.88048,2577.0,2576.3,0.49821663]
[1730861949442,7.93091745,2577.4,2576.2,0.7519]
[1730861949443,7.15801745,2576.9,2576.2,0.7519]
[1730861949599,7.15801745,2576.9,2576.4,35.0]
[1730861949805,3.87989,2577.4,2576.6,0.7419]
[1730861950012,3.87979,2577.5,2576.6,0.7419]
[1730861950013,7.15801745,2577.3,2576.6,3.7419]
[1730861950403,11.03805745,2577.3,2576.6,3.7419]
[1730861950596,3.88035,2577.1,2576.6,3.7419]
[1730861950796,3.88035,2577.1,2576.6,0.7419]
[1730861951159,3.88035,2577.1,2576.7,0.42401166]
[1730861951160,3.88033,2577.1,2576.7,0.42401166]
[1730861951306,3.88078,2576.8,2576.6,0.7419]
[1730861951645,3.88056,2577.0,2576.4,35.0]
[1730861951811,10.79240957,2577.2,2576.4,35.0]
[1730861952143,0.7729,2577.8,2576.5,0.7419]
[1730861952350,11.62717747,2578.3,2577.1,0.7419]
[1730861952562,3.87867,2578.2,2577.2,0.52796594]
[1730861952699,7.74863747,2578.3,2577.7,35.0]
[1730861952700,6.91214957,2577.8,2577.7,35.0]
[1730861953114,6.91214957,2577.8,2576.8,7.762]
[1730861953115,3.87957,2577.6,2576.7,0.7419]
[1730861953310,6.91214957,2577.2,2576.8,0.07759204]
[1730861953580,6.91214957,2577.2,2576.7,0.7419]
[1730861953848,6.91138524,2577.3,2576.7,0.7419]
[1730861954008,0.7729,2578.2,2576.9,35.0]
[1730861954207,0.7729,2578.2,2577.1,0.7419]
[1730861954208,6.91138524,2578.1,2577.1,0.7419]
[1730861954456,6.91138524,2578.1,2577.2,0.52462186]
[1730861954743,10.79032524,2578.1,2577.2,0.52462186]
[1730861954947,0.7729,2578.2,2577.2,0.52462186]
[1730861954948,6.91138524,2577.6,2577.2,0.52462186]
[1730861955153,10.79098524,2577.6,2577.1,0.7419]
[1730861955311,6.91138524,2577.6,2577.1,0.7419]
[1730861955548,6.91138524,2577.6,2577.1,1.26652186]
[1730861955723,6.91138524,2577.6,2577.1,1.57294777]
[1730861956019,6.91138524,2577.6,2577.1,1.04832591]
[1730861956224,6.91138524,2577.6,2577.2,0.30642591]
[1730861956531,3.87987,2577.4,2577.3,0.30642591]
[1730861956752,3.87987,2577.4,2577.0,0.4902554]
[1730861956753,3.88002,2577.3,2575.8,0.01]
[1730861956914,6.91138524,2576.5,2575.8,0.01]
[1730861957117,6.91138524,2576.5,2575.3,12.83355882]
[1730861957118,10.79261524,2576.5,2575.5,0.12132303]
[1730861957418,10.79261524,2576.5,2575.8,0.52462186]
[1730861957419,6.91138524,2576.0,2575.8,0.52462186]
[1730861957614,6.91138524,2576.0,2575.9,35.0]
[1730861957863,6.91138524,2576.7,2575.9,35.52462186]
[1730861958017,3.88123,2576.5,2576.0,0.52462186]
[1730861958228,3.88109,2576.6,2576.1,1.15147045]
[1730861958419,3.88145,2576.4,2576.1,1.15147045]
[1730861958733,3.88109,2576.6,2576.1,1.15147045]
[1730861959367,3.88127,2576.5,2576.1,1.15147045]
[1730861959656,3.88109,2576.6,2576.1,1.15147045]
[1730861959816,3.88123,2576.5,2576.1,1.15147045]
[1730861960018,3.88163,2576.3,2576.1,1.15147045]
[1730861960217,6.91138524,2576.2,2575.9,35.0]
[1730861960420,3.88184,2576.1,2575.9,35.0]
[1730861960626,0.7729,2576.9,2576.0,0.07763027]
[1730861960627,3.88108,2576.6,2576.0,0.07763027]
[1730861960834,7.68428524,2576.9,2576.0,0.07763027]
[1730861960835,3.88124,2576.5,2576.0,0.52462186]
[1730861961053,3.88093,2576.7,2576.0,0.52462186]
[1730861961320,7.68428524,2576.9,2576.0,1.93682633]
[1730861961321,3.88181,2576.2,2576.0,1.93682633]
[1730861961564,3.88181,2576.2,2575.9,35.0]
[1730861961928,6.91138524,2576.4,2575.9,35.0]
[1730861962118,5.42209852,2576.9,2576.1,3.0]
[1730861962119,6.91138524,2576.9,2576.1,3.0]
[1730861962435,6.91138524,2576.9,2576.2,1.66144622]
[1730861962436,3.8808,2576.8,2576.2,1.66144622]
[1730861962964,3.88078,2576.8,2576.7,35.0]
[1730861963551,3.88078,2576.8,2575.8,0.52462186]
[1730861963762,3.88151,2576.4,2575.9,0.07761503]
[1730861963978,3.88151,2576.4,2575.9,0.89697942]
[1730861964126,3.88154,2576.3,2575.9,0.89697942]
[1730861964521,3.88181,2576.2,2576.0,35.0]
[1730861964770,3.88183,2576.1,2576.0,35.0]
[1730861966057,3.88183,2576.1,2575.5,0.52462186]
[1730861966228,6.91138524,2575.8,2575.0,0.01]
[1730861966423,6.91138524,2575.8,2575.3,0.52462186]
[1730861966663,3.88244,2575.7,2575.3,0.52462186]
[1730861966867,6.91138524,2575.8,2575.3,0.52462186]
[1730861967160,6.91138524,2575.8,2575.4,35.0]
[1730861967363,10.79367524,2575.8,2575.4,35.0]
[1730861967526,10.79378524,2575.8,2575.4,35.0]
[1730861967725,3.88274,2575.5,2575.4,35.0]
[1730861968327,0.7729,2575.4,2574.4,0.60784939]
[1730861968635,6.91138524,2574.5,2574.4,0.60784939]
[1730861968827,6.91138524,2574.5,2574.4,35.0]
[1730861969064,6.91138524,2574.5,2574.4,35.30339788]
[1730861969379,6.91138524,2575.0,2574.4,35.30339788]
[1730861969557,6.91138524,2575.0,2574.5,0.30339788]
[1730861970273,3.88389,2574.8,2574.5,0.30339788]
[1730861970632,3.88409,2574.6,2574.5,0.30339788]
[1730861970827,10.79495524,2575.0,2574.5,0.30339788]
[1730861971043,10.79495524,2575.0,2574.6,0.07767299]
[1730861971476,3.88376,2574.9,2574.5,0.30339788]
[1730861971637,3.88381,2574.8,2574.5,0.30339788]
[1730861971974,10.79495524,2575.0,2574.5,0.30339788]
[1730861972180,3.88366,2574.9,2574.6,0.07766871]
[1730861972363,10.79495524,2575.0,2574.6,0.07766871]
[1730861972678,3.8838,2574.8,2574.5,0.30338131]
[1730861972879,3.88396,2574.7,2573.8,3.60848955]
[1730861973044,3.88396,2574.7,2573.9,0.39591653]
[1730861973045,6.91138524,2574.5,2573.9,0.39591653]
[1730861973253,6.91138524,2574.5,2573.8,0.60848955]
[1730861973953,6.91138524,2574.5,2574.0,35.0]
[1730861975142,3.88455,2574.3,2574.0,35.0]
[1730861975586,3.88472,2574.2,2574.0,35.0]
[1730861975889,7.76921,2574.3,2574.0,35.0]
[1730861976090,3.88455,2574.3,2574.0,35.0]
[1730861976589,10.79570524,2574.5,2574.0,35.0]
[1730861976744,3.88485,2574.1,2574.0,35.0]
[1730861976947,4.69697,2574.0,2573.4,0.66690714]
[1730861977273,10.79662524,2573.9,2573.4,0.05829085]
[1730861977584,6.91138524,2573.9,2573.2,0.60872346]
[1730861977991,6.91138524,2573.9,2573.3,35.0]
[1730861978681,0.8119,2573.8,2573.3,35.0]
[1730861979090,6.91138524,2573.9,2573.3,35.0]
[1730861979459,6.91138524,2573.4,2573.3,35.0]
[1730861979658,6.91138524,2573.4,2573.1,0.0635879]
[1730861980453,11.60919524,2573.4,2573.1,0.0635879]
[1730861980648,11.60919524,2573.4,2573.1,35.0635879]
[1730861980850,3.88609,2573.3,2573.1,35.0635879]
[1730861981165,7.72328524,2573.4,2573.1,35.0635879]
[1730861981396,11.60919524,2573.4,2573.1,35.0635879]
[1730861981702,11.60919524,2573.4,2572.4,0.11]
[1730861981703,3.88661,2573.0,2572.4,0.11]
[1730861981901,6.91138524,2572.7,2571.9,0.7496]
[1730861982394,6.91138524,2572.2,2571.9,0.7496]
[1730861982748,0.8119,2572.1,2571.9,0.7496]
[1730861983202,0.8119,2572.1,2571.2,0.01]
[1730861983203,6.91138524,2571.7,2571.2,35.0]
[1730861983375,6.91138524,2571.7,2571.0,0.80997978]
[1730861984376,0.7515,2571.6,2571.0,0.80997978]
[1730861984855,0.7515,2571.6,2571.1,35.0]
[1730861985299,6.91138524,2571.2,2571.1,35.0]
[1730861985496,0.03868978,2571.5,2570.5,0.0635879]
[1730861985793,6.91138524,2571.1,2570.5,0.0635879]
[1730861986180,0.7515,2570.9,2570.5,35.0635879]
[1730861986380,0.03868978,2570.8,2570.5,35.0635879]
[1730861986584,0.7515,2571.7,2570.6,0.07779449]
[1730861986763,7.66288524,2572.0,2570.5,3.9738679]
[1730861986978,7.66288524,2572.0,2570.6,4.20014311]
[1730861987299,6.91138524,2571.5,2570.7,35.0]
[1730861987454,0.7515,2571.4,2570.8,1.93682633]
[1730861987652,0.7515,2571.4,2570.7,35.0]
[1730861987995,0.7515,2571.4,2570.5,0.0635879]
[1730861987996,3.88991,2570.8,2570.5,0.0635879]
[1730861988197,3.88991,2570.8,2569.5,0.40642464]
[1730861988198,6.91138524,2570.6,2569.5,0.40642464]
[1730861988365,6.91138524,2570.6,2569.6,35.0]
[1730861989105,6.91138524,2570.6,2569.7,0.07780564]
[1730861989397,6.91138524,2570.6,2569.6,35.05838251]
[1730861990898,0.79018978,2570.5,2569.6,35.0]
[1730861991095,4.68050978,2570.5,2569.6,35.0]
[1730861992170,3.89045,2570.4,2569.6,35.0]
[1730861992367,6.91138524,2570.1,2569.6,35.0]
[1730861992572,0.7515,2569.9,2569.2,0.0635879]
[1730861993157,0.7515,2569.9,2569.3,35.0]
[1730861997489,6.91138524,2569.4,2569.3,35.0]
[1730861997997,6.95156084,2569.8,2569.3,35.0]
[1730862000301,6.86539084,2569.8,2569.3,35.0]
[1730862001219,0.7931,2570.5,2569.9,3.8911]
[1730862001416,0.7931,2570.5,2569.6,3.0]
[1730862001580,6.95156084,2570.3,2569.6,0.36378241]
[1730862001775,6.95156084,2570.3,2570.0,35.0]
[1730862002229,0.7931,2570.2,2570.0,35.0]
[1730862002532,6.95156084,2570.3,2570.0,35.0]
[1730862002880,4.72266978,2570.2,2569.2,0.0635879]
[1730862003080,6.95156084,2569.7,2569.2,0.0635879]
[1730862003378,0.83178978,2569.6,2569.2,35.0635879]
[1730862003590,0.83178978,2569.6,2568.2,3.89364]